Cogmind - Beta 16 @@@ ROGUE MODE // 2025.10.24 @ 18:26:45 Player: shapeshifter Result: Destroyed by U9-9TG(R) with Subdweller Machine Gun Performance ------------- Evolutions (0) 0 Regions Visited (2) 400 Robots Destroyed (17) 85 Value Destroyed (345) 345 Prototype IDs (12) 240 Alien Tech Used (0) 0 Bonus (0) 0 TOTAL SCORE: 1070 Bonus ------- None Cogmind --------- Core Integrity 0/250 Matter 21/300 Energy 100/100 System Corruption 1% Temperature Cool (0) Movement Rolling (110) Location -10/Subcaves Parts ------- > --- POWER (1) -------- (None) > --- PROPULSION (2) --- Subdweller Monowheel > --- UTILITY (2) ------ (None) > --- WEAPON (2) ------- Barrage Gun > --- INVENTORY (5) ---- Arachnoskeleton Peak State ------------ > --- POWER ------------ Subdweller Power Source > --- PROPULSION ------- Subdweller Monowheel Subdweller Monowheel > --- UTILITY ---------- Small Storage Unit Subdweller Optics > --- WEAPON ----------- Battle Rifle Makeshift Sword > --- INVENTORY -------- Arachnoskeleton Subdweller Monowheel Subdweller Monowheel Heavy Assault Rifle [Rating: 17] Favorites ----------- Power Subdweller Power Source Engine Subdweller Power Source Propulsion Light Treads Treads Light Treads Wheel Wheel Utility Small Storage Unit Device Seismic Detector Storage Small Storage Unit Protection Scrap Shield Weapon Assault Rifle Energy Gun EM Pulse Gun Ballistic Gun Assault Rifle Slashing Weapon Makeshift Sword Build | -11 -10 -10 ------- Run | Yrd Mat Sub Slots Evolved . | . . . Power . | . . . Propulsion . | . . . Utility . | . . . Weapon . | . . . Parts Attached 27 | 7 2 18 Power 5 | 1 . 4 Engine 5 | 1 . 4 Core . | . . . Reactor . | . . . Propulsion 9 | 2 2 5 Treads 2 | 2 . . Leg . | . . . Wheel 7 | . 2 5 Hover . | . . . Flight . | . . . Utility 4 | 2 . 2 Device 2 | 1 . 1 Storage 1 | 1 . . Processor . | . . . Hackware . | . . . Protection 1 | . . 1 Artifact . | . . . Weapon 9 | 2 . 7 Energy Gun 1 | . . 1 Energy Cannon . | . . . Ballistic Gun 7 | 2 . 5 Ballistic Cannon . | . . . Launcher . | . . . Special Weapon . | . . . Impact Weapon . | . . . Slashing Weapon 1 | . . 1 Piercing Weapon . | . . . Special Melee Weapon . | . . . Unidentified Prototypes . | . . . Parts Lost 11 | . . 11 Power 2 | . . 2 Propulsion 5 | . . 5 Utility 2 | . . 2 Weapon 2 | . . 2 Highest Loss Streak 6 | . . 6 To Critical Strikes . | . . . Average Backups 5 | 3 4 5 Power . | . 1 . Propulsion 3 | 1 2 3 Utility 1 | . . 1 Weapon . | . 1 . Tool/Special . | . . . Unused Backups 5 | . . 5 Power . | . . . Propulsion 1 | . . 1 Utility 3 | . . 3 Weapon 1 | . . 1 Tool/Special . | . . . Average Slot Usage (%) 94 | . 100 93 Engine 12 | . 14 12 Treads 11 | . 11 11 Wheel 15 | . 16 15 Device 11 | . 14 11 Storage 12 | . 14 12 Protection 1 | . . 1 Energy Gun 3 | . . 3 Ballistic Gun 24 | . 28 24 Peak Build Rating 17 | 7 7 17 Average Rating 11 | 4 7 11 On Entrance 4 | . 7 7 Avg Prop Armor Cover (%) . | . . . Naked Turns . | . . . Heaviest Build 28 | 13 13 28 Greatest Support 40 | 40 40 40 Greatest Overweight (x) . | . . . Average Overweight (x) . | . . . Largest Inventory Capacity 8 | 8 8 8 Average Capacity 7 | 7 8 7 Most Carried 8 | 6 5 8 Average Carried 6 | 3 4 6 Final Capacity 8 | 8 8 5 Final Carried 5 | 4 5 3 Class Distribution -------------------- 82% | Mutant 9% | Scavenger-Mutant 7% | Subdweller-Mutant Dominant Class ---------------- Mutant | -10/Materials Mutant | -10/Subcaves Resources | -11 -10 -10 ----------- Run | Yrd Mat Sub Matter Collected 778 | 254 96 428 Remotely . | . . . Salvage Created 569 | 45 36 488 Parts 42 | 4 4 34 Haulers Intercepted . | . . . Recyclers Shooed . | . . . Parts Field Recycled . | . . . Retrieved Matter . | . . . Parts Self-Destructed 29 | . . 29 Prevented . | . . . Parts Restored . | . . . Kills | -11 -10 -10 ------- Run | Yrd Mat Sub Combat Hostiles Destroyed 11 | . . 11 Guns 11 | . . 11 Classes Destroyed 7 | 1 2 4 Worker 1 | . 1 . Builder 1 | . 1 . Tunneler 2 | 2 . . Turret 2 | . . 2 Swarmer 6 | . . 6 Sentry 1 | . . 1 Subdweller 4 | . . 4 Best Kill Streak 5 | 2 2 5 Combat Bots Only 5 | . . 5 Max Kills in Single Turn 1 | 1 1 1 Gunslinging . | . . . Exploded . | . . . Melee . | . . . Uniques/NPCs Destroyed . | . . . Combat | -11 -10 -10 -------- Run | Yrd Mat Sub Hostile Shots Fired 202 | . . 202 Missed 63 | . . 63 Hits 139 | . . 139 Projectile 139 | . . 139 Damage Taken 1731 | . 10 1721 Core 253 | . . 253 Absorbed by Shields . | . . . Core Remaining (%) 100 | 100 . . Volleys Fired 114 | 5 5 104 Largest 2 | 2 2 2 Hottest 60 | 40 40 60 Shots Fired 203 | 10 10 183 Gun 203 | 10 10 183 Cannon . | . . . Launcher . | . . . Special . | . . . Kinetic 200 | 10 10 180 Thermal . | . . . Explosive . | . . . Electromagnetic 3 | . . 3 Robot Hit Streak 10 | 4 6 10 Robot Miss Streak 4 | 1 1 4 Penetration Max . | . . . Secondary Targets 3 | . . 3 Max Gunslinging Chain 1 | . . 1 Shots Hit Robots 90 | 7 6 77 Core Hits 30 | 3 2 25 Critical Kills . | . . . Critical Parts Destroyed 1 | . . 1 Critical Strikes 2 | . . 2 Destroy 2 | . . 2 Melee Attacks 5 | . . 5 Impact . | . . . Slashing 5 | . . 5 Piercing . | . . . Sneak Attacks . | . . . Combat Hostiles . | . . . Follow-up Attacks . | . . . Damage Inflicted 1756 | 79 78 1599 Guns 1389 | 79 78 1232 Cannons . | . . . Explosions . | . . . Melee 366 | . . 366 Ramming 1 | . . 1 Kinetic 1353 | 79 78 1196 Thermal . | . . . Explosive . | . . . Electromagnetic 36 | . . 36 Impact . | . . . Slashing 366 | . . 366 Piercing . | . . . Highest Corruption 1 | . . 1 Average Corruption 1 | . . 1 Corruption Purged . | . . . Corruption Blocked . | . . . Effects 1 | . . 1 Message Errors 1 | . . 1 Overload Shots . | . . . Overflow Damage . | . . . Projectiles . | . . . Explosions . | . . . Melee . | . . . Knockbacks . | . . . Impact . | . . . Kinetic . | . . . Secondary . | . . . Self-Inflicted Damage . | . . . Shots . | . . . Rammed 1 | . . 1 Targets Rammed 1 | . . 1 Kicked . | . . . Crushed . | . . . Highest Temperature 6 | . 6 . Average Temperature 6 | . 6 . Received Heat Transfer 426 | . 6 420 Siege Activations . | . . . Martial Activations . | . . . Shielding Activations . | . . . Robots Disrupted . | . . . Combat Hostiles . | . . . Robots Corrupted . | . . . Combat Hostiles . | . . . Parts Fried . | . . . Impact Corruptions . | . . . Robots Melted . | . . . Combat Hostiles . | . . . Parts Melted . | . . . Heat Transferred . | . . . Parts Sabotaged . | . . . Parts Stolen . | . . . Parts Stripped . | . . . Power Chain Reactions . | . . . Alert | -11 -10 -10 ------- Run | Yrd Mat Sub Maximum Alert Level . | . . . Low Security (%) 100 | 100 100 . Level 1 . | . . . Level 2 . | . . . Level 3 . | . . . Level 4 . | . . . Level 5 . | . . . High Security . | . . . Max Security . | . . . Peak Influence 10 | 5 10 . Initial . | . . . Average . | . . . Influence Increases 265 | 10 10 245 Destroy 0b10 Robot/C 180 | . . 180 Destroy 0b10 Robot/NC 20 | 10 10 . Destroy Leader 20 | . . 20 Lose Combat Pursuer 45 | . . 45 Influence Decreases 265 | 10 10 245 Time Decay 215 | 10 10 195 Lost Part 50 | . . 50 Squads Dispatched 1 | . 1 . Investigation . | . . . Extermination . | . . . Reinforcement 1 | . 1 . Assault . | . . . Garrison . | . . . Intercept . | . . . Searches Triggered . | . . . Construction Impeded . | . . . Haulers Reinforced . | . . . Active Scanning Responses . | . . . Cargo Convoy Interrupts . | . . . Stealth | -11 -10 -10 --------- Run | Yrd Mat Sub Distress Signals . | . . . Communications Jammed . | . . . Distress Signals . | . . . Times Spotted 25 | . 2 23 Peak Tracking Total 5 | . 1 5 Tactical Retreats 1 | . . 1 Traps | -11 -10 -10 ------- Run | Yrd Mat Sub Traps Triggered . | . . . Indirectly . | . . . Trap Hack Attempts . | . . . Triggered . | . . . Disarmed . | . . . Reprogrammed . | . . . Reused . | . . . Traps Extracted . | . . . Installed . | . . . Triggered . | . . . Machines | -11 -10 -10 ---------- Run | Yrd Mat Sub Machines Disabled 3 | . . 3 Max in Single Turn 2 | . . 2 Machines Repaired . | . . . Machines Dismantled . | . . . Machines Sabotaged . | . . . Overloaded Fab Kills . | . . . Hacking | -11 -10 -10 --------- Run | Yrd Mat Sub Machines Accessed 3 | . 1 2 Terminals 1 | . 1 . Fabricators . | . . . Repair Stations . | . . . Recycling Units . | . . . Scanalyzers . | . . . Garrison Access . | . . . Total Hacks 6 | . 2 4 Successful 5 | . 1 4 Failed 1 | . 1 . Catastrophic 1 | . 1 . Database Lockouts . | . . . Manual 2 | . 2 . Terminals 2 | . 2 . Fabricators . | . . . Repair Stations . | . . . Recycling Units . | . . . Scanalyzers . | . . . Garrison Access . | . . . Terminal Hacks 4 | . . 4 Record 3 | . . 3 Proto ID Catalog 1 | . . 1 Fabricator Hacks . | . . . Repair Station Hacks . | . . . Recycling Unit Hacks . | . . . Scanalyzer . | . . . Garrison Access Hacks . | . . . Unauthorized Hacks 1 | . 1 . Terminals 1 | . 1 . Skim 1 | . 1 . Fabricators . | . . . Repair Stations . | . . . Recycling Units . | . . . Scanalyzers . | . . . Garrison Access . | . . . Data Cores Recovered 1 | . 1 . Used 1 | . 1 . Hacking Detections 1 | . 1 . Full Trace Events . | . . . Feedback Events . | . . . Feedback Blocked . | . . . Robot Schematics Acquired . | . . . Robots Built . | . . . Authchips . | . . . Time . | . . . Total Robot Build Rating . | . . . Part Schematics Acquired . | . . . Parts Built . | . . . Authchips . | . . . Time . | . . . Total Part Build Rating . | . . . Part Studies Acquired . | . . . Parts Repaired . | . . . Time . | . . . Parts Recycled . | . . . Recycled Matter . | . . . Retrieved Matter . | . . . Retrieved Components . | . . . Parts Scanalyzed . | . . . Part Schematics Acquired . | . . . Parts Damaged . | . . . Bothacking | -11 -10 -10 ------------ Run | Yrd Mat Sub Used RIF Installer . | . . . Robots Hacked . | . . . Non-combat . | . . . Combat . | . . . Robot Hacks Applied . | . . . Relay Couplers Released . | . . . Fabnet Peak Effective % . | . . . Robots Rewired . | . . . Allies Hacked . | . . . Hacks Repelled . | . . . Allies | -11 -10 -10 -------- Run | Yrd Mat Sub Total Allies . | . . . Largest Group . | . . . Highest-Rated Group . | . . . Highest-Rated Ally . | . . . Total Orders . | . . . Ally Attacks . | . . . Total Damage . | . . . Kills . | . . . Allies Corrupted . | . . . Allies Melted . | . . . Intel | -11 -10 -10 ------- Run | Yrd Mat Sub Active Infowar (turns) 1826 | 18 140 1668 Optics 839 | . . 839 Seismic 987 | 18 140 829 Robot Analysis Total . | . . . Derelict Logs Recovered 2 | . . 2 Drone Launches . | . . . Drone Recoveries . | . . . Exploration | -11 -10 -10 ------------- Run | Yrd Mat Sub Turns Passed 2447 | 97 140 2210 Spaces Moved 1669 | 55 95 1519 Core 20 | 20 . . Treads 573 | 35 24 514 Legs . | . . . Wheels 1076 | . 71 1005 Hover . | . . . Flight . | . . . Fastest Speed 50 | 50 80 80 Average Speed 114 | 120 100 114 Slowest Speed 160 | 160 160 160 Overloaded Moves . | . . . Propulsion Burnouts . | . . . Robots Hopped . | . . . Potential Cave-ins . | . . . Cave-ins Triggered . | . . . Exploration Rate (%) 33 | 5 17 77 Regions Visited 2 Branch Regions 1 Pre-discovered Areas 3 | . . 3 Known Exits Taken . | . . . Unknown Exits Taken 2 | 1 1 . Scrap Searched 2 | . . 2 Spaces Dug . | . . . Terrain Destroyed . | . . . Melee . | . . . Projectile . | . . . AOE . | . . . Terrain Rammed . | . . . Walls Destroyed . | . . . Machines Disabled . | . . . Actions | -11 -10 -10 --------- Run | Yrd Mat Sub Total 2015 | 76 128 1811 Wait 149 | . 24 125 Move 1667 | 54 94 1519 Hop . | . . . Pick Up 27 | 10 1 16 Fast Attach 3 | 1 . 2 Attach 15 | 6 . 9 Detach . | . . . Swap 14 | . 4 10 Drop 19 | . . 19 Fire 114 | 5 5 104 Melee 5 | . . 5 Ram 1 | . . 1 Kick . | . . . Crush . | . . . Escape Stasis . | . . . Rewire . | . . . Trap . | . . . Miscellaneous 1 | . . 1 Route ------- -11/Scrapyard -10/Materials -10/Subcaves (discovered 3 exits: [*Mat x2] / [*Rec]) History --------- Turn | Location | Event 11 | -11/Scrapyard | Discovered new exit (range 16) 98 | -11/Scrapyard | Entered Materials 99 | -10/Materials | Met a group of wandering Federalists 205 | -10/Materials | Discovered new exit (range 8) 238 | -10/Materials | Entered Subcaves 238 | -10/Subcaves | Accompanied by 2 allies 239 | -10/Subcaves | Continued accompanying wandering Federalists (5) 239 | -10/Subcaves | Approached by a straggling Scientist 293 | -10/Subcaves | Lost 3 allies 315 | -10/Subcaves | Build established: Mutant 330 | -10/Subcaves | Discovered new exit (range 16) 940 | -10/Subcaves | Visited 4L-MR0's lab 963 | -10/Subcaves | Found Arachnoskeleton 1218 | -10/Subcaves | Disturbed a concealed Subdweller 1305 | -10/Subcaves | Learned location of Zion (-6) 1305 | -10/Subcaves | Met a Zionite searching for "candidates" 1421 | -10/Subcaves | Learned location of 1 exit from Materials 1443 | -10/Subcaves | Discovered new exit (range 14) 1450 | -10/Subcaves | Core integrity fell below 50% 1503 | -10/Subcaves | Discovered new exit (range 9) 2174 | -10/Subcaves | Visited Clippyterm 2177 | -10/Subcaves | Learned location of Deep Caves (-6) 2249 | -10/Subcaves | A swath of the cavern ceiling suddenly collapsed 2425 | -10/Subcaves | Core integrity fell below 20% 2448 | -10/Subcaves | Destroyed by U9-9TG(R) with Subdweller Machine Gun Last Messages --------------- is frequently seen in Scraptown. 02198_ TL-QZK(R) suffers critical hit (Destroy). 02204_ Destroyed Sub. Power Source. 02206_ TL-QZK(R) destroyed. 02211_ Acquired 38 matter. 02214_ Dropped Broken Sub. Monowheel. 02214_ Dropped Hvy. Assault Rifle. 02215_ Dropped Sub. Machine Gun. 02215_ Dropped Broken Sub. Optics. 02216_ Dropped Sml. Storage Unit. 02216_ Acquired Scrap Shield. 02220_ Scrap Shield Fragment affixed to Scrap Shield (+45). A swath of the cavern ceiling suddenly collapses. 02381_ Battle Rifle destroyed. 02395_ Slammed into OF-T9D(R). 02395_ Destabilizing: System corrupted (+1). 02397_ Scrap Shield destroyed. 02405_ YSK9Q%O,<25T9Z&,ZCB,FD 02427_ Sub. Monowheel destroyed. 02438_ Broken Sub. Power Source destroyed. Map ----- +----------------------------------------------------+ | | | | | | | | | | | ?????????????????????????????????????????????????? | | ?????????????????????????????????????????????????? | | ?????????????????????????????????????????????????? | | ?????????????????????????????????????????????????? | | ?????????????????????????????????????????????????? | | ?????????????????????????????????????????????????? | | ?????????????????????????????????????????????????? | | ?????????????????????????????????????????????????? | | ?????????????????????????????????????????????????? | | ?????????????????????????????????????????????????? | | ?????????????????????????????????????????????????? | | ????????????????????????????????????????????###### | | ????????????????????????????????????????????#""""" | | ????????????????????????????????????????????#""X"" | | ####????????????????????????????###?????????#" " | | #????????????????????????##### #???????##### ## | | #????????#####?##???????## #??????## ## ## | | #?????####"""#####?????## #####??# # | | #????##" " "##""#"######" #[#!##?### | | # #######""###"#"####"# " " [ = ##??## | | # """###?##"""#""" @"""u #[! #??## ## | | #### #####????### ### " " """ ## ##### ### | | ##???????##"# "# ## "#### " ## # # #?? | | # #????????## ";R #### #?#"" ### ##?? | | ####?????##"#; R #??# ##?#""##?### # #??? | | ### "#?????#""" "##?? #??"" ????#### #??? | | #?########?????### "#??? ?? ##??????# #??? | | ?????????????????######???# #??? #??????? #?? | | ???????????????????????????##???? ???????# #?? | | ??????????????????????????####?? ??????? #?? | | ?????????????????????????? ???? ??????? ?? | | ?????????????????????????? ??????????? ? | | ?????????????????????????? #??????????? ### | | ???????????????????????##? #??????????##??## | | ???????????????????????# ? #????????????????##### | | ?????????????????????### ? #????????????????????? | | ?????????????????????? # #????????????????????? | | ???????????????????????# #????????????????????? | | ???????????????????????# #?????????????????????? | | ???????????????????????## "#?????????????????????? | | ????????????????????????# #?????????????????????? | | ##?????????????????????## #?????????????????????? | | #?????????????????????# ##????????????????????? | | ##????????????????????## #????????????????????? | | ##???????????????????# ##????????????????????? | +----------------------------------------------------+ Best States ------------- Heat Dissipation 25 Energy Generation 15 Energy Capacity 250 Matter Stores 300 Matter Capacity 300 Sight Range 21 Terrain Scan Density 10 Armor Coverage 800 Evasion (%) 50 Recoil Reduction 2 Item Schematics ----------------- None Robot Schematics ------------------ None Fabricated ------------ Nothing Repaired ---------- Nothing Studied --------- None Alien Tech Used ----------------- None Achievements -------------- Strength In Numbers Challenges ------------ None Game ------ Seed CannonNetworkRecalibrator Manual? 0 Play Time 00:12:46 Cumulative 416.7 hours Start 2025.10.24 @ 18:16:18 End 2025.10.24 @ 18:26:45 Sessions 1 Manual Loads 0 Difficulty Rogue Special Mode None Game No. 539 Rogue 539 Adventurer 0 Explorer 0 Win Type - Total 12 Types 6/0/1/2/1/0/2/0/0/0 Lore% 89 Gallery% 83 Achievement% 51 Wizard Run 0 Options --------- Layout 0 ASCII 0 Keyboard 0 Movement Mouse Keybinds 0 Fullscreen 1 Font 24/Terminus Map View 76x50 Zoom Use 0% Tactical HUD 1 Map Filters NONE Filters NONE Steam 1 RUN: 7d10cc74-6e49-4e95-a7f6-2761bc6539e6